lending/lending_fUSD_20240110
["ID","MTS","AMOUNT","RATE_DAILY","PERIOD"]
[311005919,1704856795432,-507.69,0.00041095,30]
[311005920,1704856795459,-727.79,0.00041095,30]
[311005921,1704856795484,-500.0,0.00041095,30]
[311005922,1704856795510,-533.16,0.00041095,30]
[311005923,1704856795537,-1388.86,0.00041095,30]
[311005924,1704856795563,-812.04,0.00041095,30]
[311005925,1704856795588,-787.14,0.00041095,30]
[311005926,1704856795613,-620.83,0.00041095,30]
[311005927,1704856795640,-1465.03,0.00041095,30]
[311005928,1704856795668,-1730.4,0.00041095,30]
[311005929,1704856795695,-784.26,0.00041095,30]
[311005930,1704856795724,-500.0,0.00041095,30]
[311005931,1704856795751,-611.56,0.00041095,30]
[311005932,1704856795777,-1272.26,0.00041095,30]
[311005933,1704856795808,-1435.79,0.00041095,30]
[311005934,1704856795834,-621.91,0.00041095,30]
[311005935,1704856795860,-1275.28,0.00041095,30]
[311005936,1704856795887,-600.97,0.00041095,30]
[311005937,1704856795913,-992.86,0.00041095,30]
[311005938,1704856795939,-1149.29,0.00041095,30]
[311005939,1704856795964,-809.53,0.00041095,30]
[311005940,1704856796214,-1106.99,0.00041095,30]
[311005941,1704856796246,-500.0,0.00041095,30]
[311005942,1704856796275,-570.82,0.00041095,30]
[311005943,1704856796303,-902.85,0.00041095,30]
[311005944,1704856796332,-853.85,0.00041095,30]
[311005945,1704856796358,-684.52,0.00041095,30]
[311005946,1704856796384,-858.97,0.00041095,30]
[311005947,1704856796411,-920.31,0.00041095,30]
[311005948,1704856796439,-1837.21,0.00041095,30]
[311005949,1704856796466,-714.84,0.00041095,30]
[311005950,1704856796493,-1252.68,0.00041095,30]
[311005951,1704856796522,-753.01,0.00041095,30]
[311005952,1704856796550,-1296.42,0.00041095,30]
[311005953,1704856796576,-1044.85,0.00041095,30]
[311005954,1704856796601,-813.16,0.00041095,30]
[311005955,1704856796627,-848.6,0.00041095,30]
[311005956,1704856796652,-605.20409631,0.00041095,30]
[311005957,1704856796677,-831.85,0.00041095,30]
[311005958,1704856796703,-1868.52,0.00041095,30]
[311005959,1704856796729,-1263.79,0.00041095,30]
[311005960,1704856796754,-778.7,0.00041095,30]
[311005961,1704856796779,-715.76,0.00041095,30]
[311005962,1704856796804,-578.75,0.00041095,30]
[311005963,1704856796829,-516.33,0.00041095,30]
[311005964,1704856796854,-500.0,0.00041095,30]
[311005965,1704856796879,-545.63,0.00041095,30]
[311005966,1704856796905,-1060.99,0.00041095,30]
[311005967,1704856796930,-1566.38,0.00041095,30]
[311005968,1704856796956,-1163.02,0.00041095,30]
[311005969,1704856796983,-1009.01,0.00041095,30]
[311005971,1704856797009,-1252.67,0.00041095,30]
[311005972,1704856797042,-621.33,0.00041095,30]
[311005973,1704856797067,-1954.62,0.00041095,30]
[311005974,1704856797094,-1388.66,0.00041095,30]
[311005975,1704856797120,-626.68,0.00041095,30]
[311005976,1704856797146,-522.92,0.00041095,30]
[311005977,1704856797174,-523.34,0.00041095,30]
[311005978,1704856797199,-1102.37,0.00041095,30]
[311005979,1704856797227,-537.21,0.00041095,30]
[311005980,1704856797254,-549.73,0.00041095,30]
[311005981,1704856797280,-1291.56,0.00041095,30]
[311005982,1704856797306,-674.69,0.00041095,30]
[311005983,1704856797332,-1070.28,0.00041095,30]
[311005984,1704856797357,-1352.52,0.00041095,30]
[311005985,1704856797383,-648.48,0.00041095,30]
[311005986,1704856797409,-976.48,0.00041095,30]
[311005987,1704856797435,-500.0,0.00041095,30]
[311005988,1704856797463,-1055.46,0.00041095,30]
[311005989,1704856797489,-1261.64,0.00041095,30]
[311005990,1704856797515,-1071.34,0.00041095,30]
[311005991,1704856797543,-617.63,0.00041095,30]
[311005992,1704856797568,-632.63,0.00041095,30]
[311005993,1704856797594,-2016.5,0.00041095,30]
[311005994,1704856797620,-1365.96,0.00041095,30]
[311005995,1704856797645,-587.35,0.00041095,30]
[311005996,1704856797671,-1380.88,0.00041095,30]
[311005997,1704856797696,-732.24,0.00041095,30]
[311005998,1704856797723,-1990.33,0.00041095,30]
[311005999,1704856797749,-666.49,0.00041095,30]
[311006000,1704856797775,-928.27,0.00041095,30]
[311006001,1704856797802,-879.13,0.00041095,30]
[311006002,1704856797827,-1493.14,0.00041095,30]
[311006003,1704856797852,-968.15,0.00041095,30]
[311006004,1704856797877,-1218.76,0.00041095,30]
[311006005,1704856797903,-804.13,0.00041095,30]
[311006006,1704856797927,-1958.84,0.00041095,30]
[311006007,1704856797953,-2551.57,0.00041095,30]
[311006008,1704856797979,-1104.96,0.00041095,30]
[311006009,1704856798006,-530.74,0.00041095,30]
[311006010,1704856798033,-571.72,0.00041095,30]
[311006011,1704856798059,-578.8,0.00041095,30]
[311006012,1704856798085,-885.27,0.00041095,30]
[311006013,1704856798111,-1129.01,0.00041095,30]
[311006014,1704856798138,-609.13,0.00041095,30]
[311006015,1704856798163,-615.67,0.00041095,30]
[311006016,1704856798189,-2019.8,0.00041095,30]
[311006017,1704856798216,-1264.92,0.00041095,30]
[311006018,1704856798242,-1002.65,0.00041095,30]
[311006019,1704856798278,-751.86,0.00041095,30]
[311006020,1704856798304,-450.72612239,0.00041095,30]
[311006021,1704856798331,-801.43,0.00041095,30]
[311006022,1704856798357,-1524.58,0.00041095,30]
[311006023,1704856798384,-827.77,0.00041095,30]
[311006024,1704856798409,-2433.55,0.00041095,30]
[311006025,1704856798437,-202.57575322,0.00041095,30]
[311006026,1704856798463,-1393.91,0.00041095,30]
[311006027,1704856798490,-854.93,0.00041095,30]
[311006028,1704856798516,-661.38,0.00041095,30]
[311006029,1704856798543,-1150.71,0.00041095,30]
[311006030,1704856798569,-579.69,0.00041095,30]
[311006031,1704856798593,-1095.74,0.00041095,30]
[311006032,1704856798619,-1946.26,0.00041095,30]
[311006033,1704856798646,-500.0,0.00041095,30]
[311006034,1704856798671,-547.08,0.00041095,30]
[311006035,1704856798697,-779.62,0.00041095,30]
[311006036,1704856798723,-777.54,0.00041095,30]
[311006037,1704856798748,-2323.03,0.00041095,30]
[311006038,1704856798777,-1293.09,0.00041095,30]
[311006039,1704856798802,-1663.4,0.00041095,30]
[311006040,1704856798827,-740.54,0.00041095,30]
[311006041,1704856798853,-996.51,0.00041095,30]
[311006042,1704856798879,-500.0,0.00041095,30]
[311006043,1704856798905,-594.21,0.00041095,30]
[311006044,1704856798933,-206.18,0.00041095,30]
[311006045,1704856799178,-1662.45,0.00041095,30]
[311006046,1704856799205,-1107.28,0.00041095,30]
[311006047,1704856799233,-1628.85,0.00041095,30]
[311006048,1704856799260,-563.34,0.00041095,30]
[311006049,1704856799287,-664.6,0.00041095,30]
[311006050,1704856799314,-18435.71,0.00041095,30]
[311006051,1704856799340,-921.45,0.00041095,30]
[311006052,1704856799365,-500.0,0.00041095,30]
[311006053,1704856799391,-500.0,0.00041095,30]
[311006054,1704856799417,-500.0,0.00041095,30]
[311006055,1704856799443,-500.0,0.00041095,30]
[311006056,1704856799469,-500.0,0.00041095,30]
[311006057,1704856799494,-500.0,0.00041095,30]
[311006058,1704856799520,-500.0,0.00041095,30]
[311006059,1704856799547,-500.0,0.00041095,30]
[311006060,1704856799572,-500.0,0.00041095,30]
[311006061,1704856799598,-500.0,0.00041095,30]
[311006062,1704856799623,-500.0,0.00041095,30]
[311006063,1704856799650,-500.0,0.00041095,30]
[311006064,1704856799676,-500.0,0.00041095,30]
[311006065,1704856799703,-1222.59,0.00041095,30]
[311006066,1704856799728,-500.0,0.00041095,30]
[311006067,1704856799755,-500.0,0.00041095,30]
[311006068,1704856799781,-500.0,0.00041095,30]
[311006069,1704856799808,-738.93,0.00041095,30]
[311006070,1704856799834,-500.0,0.00041095,30]
[311006071,1704856799861,-500.0,0.00041095,30]
[311006072,1704856799887,-1102.21,0.00041095,30]
[311006073,1704856799914,-590.57589312,0.00041095,30]
[311006074,1704856799941,-1588.9,0.00041095,30]
[311006075,1704856799967,-1724.21,0.00041095,30]
[311006076,1704856799995,-1061.52,0.00041095,30]
[311006077,1704856800023,-3581.61,0.00041095,30]
[311006078,1704856800059,-417.03519035,0.00041095,30]
[311006079,1704856800086,-1286.47,0.00041095,30]
[311006080,1704856800113,-864.96,0.00041095,30]
[311006081,1704856800139,-500.0,0.00041095,30]
[311006082,1704856800166,-2990.98,0.00041095,30]
[311006083,1704856800193,-11448.33,0.00041095,30]
[311006084,1704856800220,-1078.76,0.00041095,30]
[311006085,1704856800248,-1119.46,0.00041095,30]
[311006086,1704856800278,-1920.48,0.00041095,30]
[311006087,1704856800305,-5015.44,0.00041095,30]
[311006088,1704856800333,-782.65,0.00041095,30]
[311006089,1704856800359,-534.41,0.00041095,30]
[311006090,1704856800385,-3896.10153882,0.00041095,30]
[311006092,1704856805324,4145.48727658,0.00037168,30]
[311006093,1704856829525,151.4011,0.00022,2]
[311006094,1704856836194,150.0,0.00037168,30]
[311006095,1704856836632,150.0,0.00037168,30]
[311006096,1704856836994,150.0,0.00037168,30]
[311006097,1704856837411,150.0,0.00037168,30]
[311006098,1704856837831,150.0,0.00037168,30]
[311006099,1704856838337,250.0,0.00037168,30]
[311006100,1704856839649,151.4011,0.000224,2]
[311006101,1704856847348,851.21,0.00021771,2]
[311006102,1704856859674,151.4011,0.000224,2]
[311006103,1704856862634,151.4011,0.000224,2]
[311006104,1704856863453,151.4011,0.000224,2]
[311006105,1704856864992,151.4011,0.000224,2]
[311006106,1704856865589,151.4011,0.000224,2]
[311006107,1704856866401,151.4011,0.000224,2]
[311006108,1704856867391,151.4011,0.000224,2]
[311006109,1704856868167,151.4011,0.000224,2]
[311006110,1704856869960,151.4011,0.000224,2]
[311006111,1704856871266,151.4011,0.000224,2]
[311006112,1704856871517,151.4011,0.000224,2]
[311006113,1704856872482,151.4011,0.000224,2]
[311006114,1704856873275,151.4011,0.000224,2]
[311006115,1704856874317,151.4011,0.000224,2]
[311006116,1704856875526,151.4011,0.000224,2]
[311006117,1704856876055,151.4011,0.000224,2]
[311006118,1704856876705,151.4011,0.000224,2]
[311006119,1704856889552,163.37,0.00021767,2]
[311006120,1704856958320,1446.81546239,0.00021996,2]
[311006121,1704856958443,1368.13670116,0.0002222,2]
[311006122,1704856958615,1446.81546239,0.00022308,2]
[311006123,1704856997235,1410.2166,0.00037168,30]
[311006124,1704857058115,160.95356887,0.00037168,120]
[311006125,1704857065003,3191.09694549,0.00037168,30]
[311006128,1704857085974,1446.81546239,0.00022307,2]
[311006129,1704857086263,1446.81546239,0.00022474,2]
[311006130,1704857086831,1965.990009,0.000372,30]
[311006131,1704857092469,529.97,0.00021762,2]
[311006133,1704857134359,150.0,0.000372,30]
[311006134,1704857134698,150.0,0.000372,30]
[311006135,1704857135637,150.0,0.000372,30]
[311006136,1704857135830,150.0,0.000372,30]
[311006137,1704857135980,150.0,0.000372,30]
[311006138,1704857136351,250.0,0.000372,30]
[311006139,1704857145102,396.2,0.00021861,2]
[311006140,1704857159836,3343.68277828,0.000372,120]
[311006141,1704857163244,42704.4764676,0.000372,30]
[311006144,1704857192251,162.33,0.00021986,2]
[311006145,1704857223124,400.0,0.000225,8]
[311006146,1704857225200,800.0,0.000226,8]
[311006147,1704857227260,1200.0,0.000227,8]
[311006148,1704857229342,1600.0,0.000228,8]
[311006149,1704857231439,2100.0,0.000229,8]
[311006150,1704857251760,163.19,0.0002197,2]
[311006151,1704857251835,163.19,0.00022487,2]
[311006152,1704857254097,-155.0,0.00022564,2]
[311006153,1704857254117,-244.54353318,0.00022565,2]
[311006154,1704857254136,-951.0941007,0.0002259,2]
[311006155,1704857265065,6019.56314143,0.000372,30]
[311006156,1704857284518,336.14,0.00019828,2]
[311006157,1704857284700,336.14,0.00022092,2]
[311006159,1704857292115,24221.0,0.000372,30]
[311006160,1704857303050,8000.0,0.000372,30]
[311006191,1704857431914,-244.54353318,0.00022519,2]
[311006192,1704857431924,-892.58965081,0.0002252,2]
[311006193,1704857431934,-174.23876873,0.0002259,2]
[311006194,1704857431944,-88.41358436,0.00022599,2]
[311006197,1704857431957,-67.35249211,0.00022599,2]
[311006232,1704857432398,-155.76607636,0.00022616,2]
[311006238,1704857432530,-155.76607636,0.00022632,2]
[311006240,1704857432541,-152.61,0.00022643,2]
[311006242,1704857432551,-155.76607636,0.00022649,2]
[311006244,1704857432561,-155.76607636,0.00022666,2]
[311006246,1704857432570,-155.76607636,0.00022683,2]
[311006248,1704857432579,-59.61587088,0.00022698,2]
[311006260,1704857432685,-90.38412912,0.00022698,2]
[311006262,1704857432694,-726.08,0.00022698,2]
[311006264,1704857432704,-1000.0,0.00022699,2]
[311006266,1704857432714,-7436.20427088,0.00022699,2]
[311006272,1704857432762,-5123.51393727,0.00022699,2]
[311006275,1704857432778,-7322.16749185,0.00022699,2]
[311006277,1704857432787,-213.6266,0.00022699,2]
[311006279,1704857432796,-155.76607636,0.00022699,2]
[311006281,1704857432806,-1300.116,0.000227,2]
[311006283,1704857432815,-484.8619,0.000227,2]
[311006285,1704857432825,-163.8328,0.000227,2]
[311006287,1704857432834,-19175.3745,0.000227,2]
[311006289,1704857432844,-500.0,0.000227,2]
[311006291,1704857432853,-327.42760564,0.000227,2]
[311006293,1704857432863,-578.40246324,0.000227,2]
[311006295,1704857432872,-725.22,0.00022703,2]
[311006297,1704857432881,-155.76607636,0.00022716,2]
[311006299,1704857432891,-712.35,0.00022717,2]
[311006301,1704857432900,-6809.43,0.00022717,2]
[311006303,1704857432909,-727.69,0.00022717,2]
[311006305,1704857432919,-723.59,0.00022718,2]
[311006308,1704857432928,-499.99,0.00022718,2]
[311006310,1704857432938,-5561.38,0.00022718,2]
[311006312,1704857432947,-733.93,0.0002272,2]
[311006314,1704857432957,-719.01,0.00022721,2]
[311006316,1704857432966,-724.64,0.00022723,2]
[311006318,1704857432976,-155.76607636,0.00022733,2]
[311006320,1704857432985,-155.76607636,0.0002275,2]
[311006322,1704857432995,-578.40246324,0.0002275,2]
[311006324,1704857433004,-155.76607636,0.00022766,2]
[311006326,1704857433013,-155.76607636,0.00022783,2]
[311006328,1704857433023,-313.79367498,0.00022797,2]
[311006330,1704857433033,-156.40014034,0.00022797,2]
[311006332,1704857433042,-155.0,0.00022797,2]
[311006334,1704857433052,-155.46930835,0.00022797,2]
[311006336,1704857433063,-248.83539254,0.00022797,2]
[311006338,1704857433072,-417.14408965,0.00022797,2]
[311006340,1704857433081,-269.98766241,0.00022797,2]
[311006342,1704857433091,-155.0,0.00022797,2]
[311006344,1704857433101,-7379.31109911,0.00022798,2]
[311006346,1704857433110,-190.63243622,0.00022798,2]
[311006349,1704857433121,-1336.65631996,0.00022799,2]
[311006351,1704857433130,-126943.59212976,0.00022799,2]
[311006353,1704857433141,-155.76607636,0.000228,2]
[311006355,1704857433150,-9908.71623021,0.000228,2]
[311006358,1704857433175,-1192.27678499,0.000228,2]
[311006361,1704857433187,-735.1422141,0.000228,2]
[311006363,1704857433198,-421.07761078,0.000228,2]
[311006364,1704857433230,-987.38231631,0.000228,2]
[311006365,1704857433242,-10503.31625428,0.000228,2]
[311006366,1704857433257,-3696.08,0.000228,2]
[311006367,1704857433297,-1249.9999988,0.000228,2]
[311006368,1704857434538,150.0,0.00037196,30]
[311006369,1704857435063,150.0,0.00037196,30]
[311006370,1704857436301,150.0,0.00037196,30]
[311006371,1704857436427,150.0,0.00037196,30]
[311006372,1704857436554,150.0,0.00037196,30]
[311006373,1704857436876,250.0,0.00037196,30]
[311006381,1704857437956,-385.03739948,0.00022697,2]
[311006382,1704857437966,-40089.392692,0.000228,2]
[311006383,1704857438084,-11583.93589853,0.000228,2]
[311006384,1704857438093,-327.42760563,0.000228,2]
[311006385,1704857438102,-578.40246324,0.000228,2]
[311006386,1704857438111,-200.0,0.00022816,2]
[311006387,1704857438120,-155.76607636,0.00022816,2]
[311006388,1704857438129,-155.76607636,0.00022833,2]
[311006389,1704857438138,-396.2,0.0002284,2]
[311006390,1704857438148,-155.76607636,0.0002285,2]
[311006391,1704857438157,-851.21,0.00022859,2]
[311006392,1704857438166,-155.76607636,0.00022867,2]
[311006393,1704857438176,-155.76607636,0.00022883,2]
[311006394,1704857438185,-7608.41143164,0.000229,2]
[311006395,1704857438194,-23542.15340548,0.000229,2]
[311006396,1704857438203,-245000.0,0.000229,2]
[311006397,1704857438212,-155.76607636,0.000229,2]
[311006398,1704857438222,-1652.68286007,0.000229,2]
[311006399,1704857438231,-327.42760563,0.000229,2]
[311006400,1704857438240,-373.77079332,0.000229,2]
[311006401,1704857438249,-170.92964012,0.000229,2]
[311006402,1704857438263,-160.88613873,0.00022988,2]
[311006403,1704857438272,-160.88613873,0.0002299,2]
[311006404,1704857438281,-408.13132858,0.00022998,2]
[311006405,1704857438291,-33274.47380971,0.00022998,2]
[311006406,1704857438300,-155.48553423,0.00022998,2]
[311006407,1704857438309,-318.17700689,0.00022998,2]
[311006408,1704857438319,-520.8631831,0.00022998,2]
[311006409,1704857438327,-325.71588619,0.00022998,2]
[311006410,1704857438337,-866.20589014,0.00022999,2]
[311006411,1704857438346,-155.42608998,0.00022999,2]
[311006412,1704857438355,-557.6768839,0.00022999,2]
[311006413,1704857438364,-150.0,0.00022999,2]
[311006414,1704857438373,-150.0,0.00022999,2]
[311006415,1704857438382,-150.0,0.00022999,2]
[311006416,1704857438391,-155.25154108,0.00022999,2]
[311006418,1704857438400,-1699433.53815522,0.00023,2]
[311006420,1704857438412,-506070.14533129,0.00023,2]
[311006429,1704857438494,-6400.0,0.00023,2]
[311006434,1704857438531,-961.40654544,0.00023,2]
[311006509,1704857441161,-499.99,0.000229,2]
[311006510,1704857441170,-356.54874824,0.00023,2]
[311006550,1704857443008,-1968.2446455,0.00023,2]
[311006551,1704857443058,-3674.27119742,0.00023,2]
[311006552,1704857443177,-330.23400921,0.00023,2]
[311006598,1704857447236,-408.1979072,0.00023,2]
[311006599,1704857447252,-909.28121093,0.00023,2]
[311006600,1704857447264,-4588.99457,0.00023,2]
[311006601,1704857447276,-7595.3,0.00023,2]
[311006602,1704857447287,-3403.18914,0.00023,2]
[311006603,1704857447299,-4802.8405425,0.00023,2]
[311006604,1704857447310,-4500.0,0.00023,2]
[311006605,1704857447322,-1081.22470541,0.00023,2]
[311006606,1704857447346,-11521.86850771,0.00023,2]
[311006607,1704857448489,11047.0,0.00037196,30]
[311006608,1704857485081,3185.89838635,0.00022076,2]
[311006609,1704857495457,1932.752725,0.00037196,30]
[311006610,1704857514831,576.02,0.00022376,2]
[311006615,1704857542439,171.03,0.00022376,2]
[311006616,1704857554834,11047.0,0.00037196,30]
[311006617,1704857566810,10940.49153334,0.00037196,30]
[311006618,1704857567412,379.57,0.0002232,2]
[311006619,1704857588267,304.949637,0.00037196,30]
[311006620,1704857611858,2762.43,0.00022213,2]
[311006621,1704857643082,792.48673311,0.0001,120]
[311006622,1704857647924,500.0,0.00037196,120]
[311006623,1704857665353,158.75,0.0002238,2]
[311006624,1704857702003,328.08,0.00020125,2]
[311006625,1704857702195,328.08,0.00022389,2]
[311006626,1704857703254,156.11,0.00022263,2]
[311006627,1704857716851,421.1304647,0.00021789,2]
[311006628,1704857723919,562.17787538,0.000202,2]
[311006629,1704857724122,25170.24046112,0.0002247,2]
[311006630,1704857725191,249.83540319,0.0002247,2]
[311006631,1704857733114,150.0,0.00037167,30]
[311006632,1704857733928,150.0,0.00037167,30]
[311006633,1704857734797,150.0,0.00037167,30]
[311006634,1704857735401,150.0,0.00037167,30]
[311006635,1704857735957,150.0,0.00037167,30]
[311006636,1704857736456,250.0,0.00037167,30]
[311006637,1704857746127,5794.36899443,0.0002247,2]
[311006638,1704857799797,270.38826598,0.00022501,2]
[311006639,1704857801339,399.88875683,0.00022501,2]
[311006640,1704857802940,1043.83416141,0.00022501,2]
[311006641,1704857812135,151.4011,0.00022501,2]
[311006642,1704857813999,151.4011,0.00022501,2]
[311006643,1704857814873,151.4011,0.00022501,2]
[311006644,1704857814941,539.40137462,0.00022501,2]
[311006645,1704857815373,406.30360629,0.00022501,2]
[311006646,1704857816502,151.4011,0.00022501,2]
[311006647,1704857816542,271.05264742,0.00022501,2]
[311006648,1704857816779,151.4011,0.00022501,2]
[311006649,1704857818092,151.4011,0.00022501,2]
[311006650,1704857818932,151.4011,0.00022501,2]
[311006651,1704857820322,151.4011,0.00022501,2]
[311006652,1704857821229,151.4011,0.00022501,2]
[311006653,1704857822141,151.4011,0.00022501,2]
[311006654,1704857822685,510.72,0.00021839,2]
[311006655,1704857822924,155.0,0.000225,2]
[311006656,1704857823247,151.4011,0.00022501,2]
[311006657,1704857825164,163.7029504,0.00022501,2]
[311006658,1704857831473,161.52008593,0.00022501,2]
[311006659,1704857838635,155.0,0.00022501,2]
[311006660,1704857843122,262.71575878,0.00022501,2]
[311006661,1704857843434,162.10379439,0.00022501,2]
[311006662,1704857846328,5270.32227151,0.00022501,2]
[311006663,1704857849654,313.79096587,0.00022501,2]
[311006664,1704857851177,2776.04739328,0.00022501,2]
[311006665,1704857852863,1371.11837125,0.00022501,2]
[311006666,1704857856152,42935.03320706,0.00022501,2]
[311006667,1704857860339,5291.0255466,0.00022501,2]
[311006668,1704857860373,1254.29701492,0.000225,2]
[311006669,1704857864859,2357.39434865,0.00022501,2]
[311006670,1704857865200,151.4011,0.00022501,2]
[311006671,1704857865683,314.83196645,0.00022501,2]
[311006672,1704857866018,151.4011,0.00022501,2]
[311006673,1704857866910,151.4011,0.00022501,2]
[311006674,1704857867746,151.4011,0.00022501,2]
[311006675,1704857868859,151.4011,0.00022501,2]
[311006676,1704857870887,151.4011,0.00022501,2]
[311006677,1704857871213,151.4011,0.00022501,2]
[311006678,1704857871542,300.0,0.00022408,2]
[311006679,1704857871767,151.4011,0.00022501,2]
[311006680,1704857872323,151.4011,0.00022501,2]
[311006681,1704857873258,151.4011,0.00022501,2]
[311006682,1704857882111,151.4011,0.00022501,2]
[311006683,1704857882899,151.4011,0.00022501,2]
[311006684,1704857883707,151.4011,0.00022501,2]
[311006685,1704857884592,151.4011,0.00022501,2]
[311006686,1704857885637,151.4011,0.00022501,2]
[311006687,1704857949469,500.0,0.00021909,2]
[311006688,1704857989140,1965.990009,0.00037174,30]
[311006689,1704857992507,10000.0,0.0003,120]
[311006690,1704858007575,539.18,0.00021899,2]
[311006691,1704858011211,354.26,0.00021899,2]
[311006692,1704858028154,150.0,0.00037174,30]
[311006693,1704858028514,150.0,0.00037174,30]
[311006694,1704858029057,150.0,0.00037174,30]
[311006695,1704858029264,150.0,0.00037174,30]
[311006696,1704858029650,150.0,0.00037174,30]
[311006697,1704858029944,250.0,0.00037174,30]
[311006698,1704858144096,158.75,0.00022041,2]
[311006699,1704858144349,158.75,0.00022185,2]
[311006700,1704858144633,158.75,0.00022329,2]
[311006701,1704858144755,158.75,0.00022472,2]
[311006702,1704858149910,311.25,0.0001993,2]
[311006703,1704858150279,311.25,0.00022194,2]
[311006704,1704858154766,151.4011,0.00022501,2]
[311006705,1704858155944,151.4011,0.00022501,2]
[311006706,1704858156919,151.4011,0.00022501,2]
[311006707,1704858157795,151.4011,0.00022501,2]
[311006708,1704858158713,151.4011,0.00022501,2]
[311006709,1704858159873,151.4011,0.00022501,2]
[311006710,1704858160874,151.4011,0.00022501,2]
[311006711,1704858161679,151.4011,0.00022501,2]
[311006712,1704858162581,151.4011,0.00022501,2]
[311006713,1704858163484,151.4011,0.00022501,2]
[311006714,1704858164532,151.4011,0.00022501,2]
[311006715,1704858165669,151.4011,0.00022501,2]
[311006716,1704858166369,151.4011,0.00022501,2]
[311006717,1704858167217,151.4011,0.00022501,2]
[311006718,1704858168135,151.4011,0.00022501,2]
[311006719,1704858233030,167.12,0.00021859,2]
[311006720,1704858299962,294.6235,0.00022404,2]
[311006721,1704858313459,514.7624665,0.000225,2]
[311006722,1704858327211,157.160559,0.00037173,30]
[311006723,1704858387037,393.15011915,0.000225,2]
[311006724,1704858396198,1932.752725,0.00037173,30]
[311006726,1704858441112,-150.0,0.00022501,2]
[311006727,1704858441133,-1254.29701492,0.00022501,2]
[311006728,1704858441154,-150.0,0.00022503,2]
[311006729,1704858441174,-10508.70102665,0.00022504,2]
[311006730,1704858441195,-2475.70914741,0.00022505,2]
[311006731,1704858453994,330.64,0.00021854,2]
[311006732,1704858490868,304.949637,0.00037173,30]
[311006733,1704858495830,568.65,0.00021853,2]
[311006734,1704858526254,163.37,0.00021852,2]
[311006735,1704858569980,163.28644455,0.00022405,2]
[311006738,1704858626763,150.0,0.00037173,30]
[311006739,1704858628367,158.75,0.0002201,2]
[311006740,1704858628617,158.75,0.00022297,2]
[311006741,1704858629980,280.12,0.00019966,2]
[311006742,1704858630228,280.12,0.0002223,2]
[311006783,1704858632088,-150.0,0.00022502,2]
[311006785,1704858632097,-191.71079882,0.00022503,2]
[311006789,1704858632161,-1032.05682951,0.00022503,2]
[311006790,1704858632173,-30.52938659,0.00022503,2]
[311006791,1704858632182,-762.56372355,0.00022504,2]
[311006792,1704858632191,-762.56372355,0.00022504,2]
[311006793,1704858632201,-2451.02185866,0.00022505,2]
[311006794,1704858632210,-553.58213388,0.00022505,2]
[311006795,1704858632219,-158.75,0.00022584,2]
[311006796,1704858632229,-162.21361845,0.00022597,2]
[311006797,1704858632238,-10503.41955545,0.00022597,2]
[311006798,1704858632247,-584.62811434,0.00022597,2]
[311006799,1704858632256,-300.0,0.00022598,2]